fUSD/lending_fUSD_20240423
["ID","MTS","AMOUNT","RATE_DAILY","PERIOD"]
[323322262,1713892238921,-1754.98,0.00011167,2]
[323322264,1713892238930,-500.0,0.00011167,2]
[323322266,1713892238939,-324.75037455,0.00011167,2]
[323322268,1713892238952,-175.24962545,0.00011167,2]
[323322270,1713892238961,-500.0,0.00011167,2]
[323322272,1713892238971,-945.0,0.00011167,2]
[323322274,1713892238980,-176.55487522,0.00011167,2]
[323322276,1713892238994,-659.46512478,0.00011167,2]
[323322278,1713892239003,-500.0,0.00011167,2]
[323322280,1713892239013,-500.0,0.00011167,2]
[323322282,1713892239022,-2113.7,0.00011167,2]
[323322284,1713892239031,-861.56,0.00011167,2]
[323322286,1713892239041,-1016.06,0.00011167,2]
[323322287,1713892239050,-582.65,0.00011167,2]
[323322288,1713892239059,-500.0,0.00011167,2]
[323322289,1713892239068,-3570.63,0.00011167,2]
[323322290,1713892239078,-500.0,0.00011167,2]
[323322291,1713892239087,-4887.39883072,0.00011167,2]
[323322292,1713892239099,-3617.55116928,0.00011167,2]
[323322293,1713892239108,-500.0,0.00011167,2]
[323322294,1713892239117,-664.07,0.00011167,2]
[323322295,1713892239126,-3696.31108354,0.00011168,2]
[323322296,1713892239135,-333.1356497,0.00011168,2]
[323322297,1713892239145,-716.283,0.00011168,2]
[323322299,1713892239154,-500.0,0.00011169,2]
[323322301,1713892239163,-500.0,0.00011169,2]
[323322303,1713892239172,-500.0,0.00011169,2]
[323322305,1713892239181,-500.0,0.00011169,2]
[323322307,1713892239192,-500.0,0.00011169,2]
[323322309,1713892239201,-526.78,0.00011169,2]
[323322311,1713892239211,-500.0,0.00011169,2]
[323322313,1713892239220,-500.0,0.00011169,2]
[323322315,1713892239228,-500.0,0.00011169,2]
[323322317,1713892239238,-500.0,0.00011169,2]
[323322319,1713892239247,-500.0,0.00011169,2]
[323322321,1713892239256,-500.0,0.00011169,2]
[323322323,1713892239265,-500.0,0.00011169,2]
[323322325,1713892239274,-500.0,0.00011169,2]
[323322327,1713892239285,-500.0,0.00011169,2]
[323322330,1713892239294,-500.0,0.00011169,2]
[323322331,1713892239304,-500.0,0.00011169,2]
[323322333,1713892239313,-500.0,0.00011169,2]
[323322335,1713892239322,-500.0,0.00011169,2]
[323322338,1713892239331,-500.0,0.00011169,2]
[323322340,1713892239341,-500.0,0.00011169,2]
[323322342,1713892239351,-500.0,0.00011169,2]
[323322344,1713892239360,-500.0,0.00011169,2]
[323322346,1713892239370,-500.0,0.00011169,2]
[323322348,1713892239379,-500.0,0.00011169,2]
[323322350,1713892239388,-500.0,0.00011169,2]
[323322352,1713892239398,-500.0,0.00011169,2]
[323322354,1713892239408,-500.0,0.00011169,2]
[323322356,1713892239417,-500.0,0.00011169,2]
[323322358,1713892239426,-500.0,0.00011169,2]
[323322360,1713892239435,-500.0,0.00011169,2]
[323322362,1713892239444,-500.0,0.00011169,2]
[323322364,1713892239454,-500.0,0.00011169,2]
[323322366,1713892239463,-627.29,0.00011169,2]
[323322368,1713892239473,-500.0,0.00011169,2]
[323322370,1713892239482,-500.0,0.00011169,2]
[323322372,1713892239491,-500.0,0.00011169,2]
[323322374,1713892239500,-500.0,0.00011169,2]
[323322376,1713892239510,-500.0,0.00011169,2]
[323322378,1713892239519,-501.51,0.00011169,2]
[323322380,1713892239528,-500.0,0.00011169,2]
[323322382,1713892239537,-500.0,0.00011169,2]
[323322384,1713892239546,-500.0,0.00011169,2]
[323322386,1713892239555,-500.0,0.00011169,2]
[323322388,1713892239565,-500.0,0.00011169,2]
[323322390,1713892239574,-500.0,0.00011169,2]
[323322392,1713892239584,-500.0,0.00011169,2]
[323322394,1713892239593,-500.0,0.00011169,2]
[323322396,1713892239603,-500.0,0.00011169,2]
[323322400,1713892239613,-500.0,0.00011169,2]
[323322404,1713892239622,-500.0,0.00011169,2]
[323322408,1713892239632,-500.0,0.00011169,2]
[323322410,1713892239641,-500.0,0.00011169,2]
[323322412,1713892239650,-500.0,0.00011169,2]
[323322414,1713892239659,-500.0,0.00011169,2]
[323322416,1713892239670,-500.0,0.00011169,2]
[323322418,1713892239679,-500.0,0.00011169,2]
[323322420,1713892239688,-815.46,0.00011169,2]
[323322422,1713892239698,-615.58,0.00011169,2]
[323322424,1713892239707,-500.0,0.00011169,2]
[323322426,1713892239716,-1000.08,0.00011169,2]
[323322429,1713892239725,-571.06,0.00011169,2]
[323322432,1713892239735,-500.0,0.00011169,2]
[323322434,1713892239748,-500.0,0.00011169,2]
[323322436,1713892239757,-209.07675373,0.00011169,2]
[323322439,1713892239777,-290.92324627,0.00011169,2]
[323322442,1713892239787,-8.03005373,0.00011169,2]
[323322474,1713892240005,-10446.13994627,0.00011169,2]
[323322476,1713892240014,-500.0,0.00011169,2]
[323322478,1713892240024,-500.0,0.00011169,2]
[323322480,1713892240033,-500.0,0.00011169,2]
[323322482,1713892240042,-500.0,0.00011169,2]
[323322484,1713892240051,-500.0,0.00011169,2]
[323322486,1713892240061,-555.99,0.00011169,2]
[323322488,1713892240070,-500.0,0.00011169,2]
[323322490,1713892240079,-500.0,0.00011169,2]
[323322492,1713892240088,-565.28785232,0.00011169,2]
[323322494,1713892240099,-500.0,0.00011169,2]
[323322496,1713892240108,-500.0,0.00011169,2]
[323322498,1713892240118,-500.0,0.00011169,2]
[323322500,1713892240127,-844.22,0.00011169,2]
[323322502,1713892240136,-500.0,0.00011169,2]
[323322504,1713892240146,-500.0,0.00011169,2]
[323322506,1713892240155,-500.0,0.00011169,2]
[323322508,1713892240165,-500.0,0.00011169,2]
[323322511,1713892240175,-500.0,0.00011169,2]
[323322513,1713892240184,-928.0,0.00011169,2]
[323322515,1713892240193,-500.0,0.00011169,2]
[323322517,1713892240202,-500.0,0.00011169,2]
[323322519,1713892240212,-500.0,0.00011169,2]
[323322521,1713892240221,-500.0,0.00011169,2]
[323322523,1713892240231,-500.0,0.00011169,2]
[323322525,1713892240242,-510.01,0.00011169,2]
[323322527,1713892240251,-500.0,0.00011169,2]
[323322529,1713892240260,-500.0,0.00011169,2]
[323322531,1713892240270,-1389.48,0.00011169,2]
[323322533,1713892240280,-500.0,0.00011169,2]
[323322535,1713892240289,-500.0,0.00011169,2]
[323322537,1713892240299,-500.0,0.00011169,2]
[323322539,1713892240309,-408.84,0.00011169,2]
[323322541,1713892240319,-500.0,0.00011169,2]
[323322543,1713892240329,-500.0,0.00011169,2]
[323322545,1713892240338,-655.78,0.00011169,2]
[323322547,1713892240349,-500.0,0.00011169,2]
[323322549,1713892240358,-676.08,0.00011169,2]
[323322551,1713892240368,-500.0,0.00011169,2]
[323322553,1713892240378,-500.0,0.00011169,2]
[323322555,1713892240387,-776.87,0.00011169,2]
[323322557,1713892240396,-500.0,0.00011169,2]
[323322559,1713892240406,-543.2,0.00011169,2]
[323322561,1713892240416,-500.0,0.00011171,2]
[323322563,1713892240425,-500.0,0.00011171,2]
[323322565,1713892240434,-500.0,0.00011171,2]
[323322567,1713892240443,-500.0,0.00011171,2]
[323322569,1713892240452,-6602.4842,0.00011342,2]
[323322571,1713892240461,-1100.43363435,0.00011351,2]
[323322573,1713892240470,-3164.50993962,0.00011388,2]
[323322575,1713892240479,-500.0,0.00011438,2]
[323322577,1713892240489,-165.04316459,0.00011438,2]
[323322580,1713892240500,-500.0,0.00011438,2]
[323322582,1713892240509,-500.0,0.00011438,2]
[323322584,1713892240518,-500.0,0.00011438,2]
[323322586,1713892240527,-500.0,0.00011438,2]
[323322588,1713892240536,-236.51827636,0.0001144,2]
[323322590,1713892240546,-295.6947702,0.0001144,2]
[323322592,1713892240555,-1212.0,0.00011441,2]
[323322594,1713892240564,-500.0,0.00011441,2]
[323322596,1713892240573,-500.0,0.00011441,2]
[323322598,1713892240582,-500.0,0.00011441,2]
[323322600,1713892240591,-500.0,0.00011441,2]
[323322602,1713892240601,-500.0,0.00011441,2]
[323322604,1713892240610,-1156.5,0.00011441,2]
[323322606,1713892240619,-500.0,0.00011441,2]
[323322608,1713892240629,-564.56,0.00011441,2]
[323322610,1713892240638,-500.0,0.00011441,2]
[323322612,1713892240647,-500.0,0.00011441,2]
[323322614,1713892240656,-1384.21,0.00011441,2]
[323322616,1713892240665,-500.0,0.00011441,2]
[323322618,1713892240674,-1589.98,0.00011441,2]
[323322620,1713892240684,-500.0,0.00011441,2]
[323322622,1713892240693,-500.0,0.00011441,2]
[323322624,1713892240703,-500.0,0.00011441,2]
[323322626,1713892240713,-1138.86,0.00011441,2]
[323322628,1713892240723,-500.0,0.00011441,2]
[323322630,1713892240733,-500.0,0.00011441,2]
[323322632,1713892240747,-500.0,0.00011441,2]
[323322634,1713892240756,-720.44,0.00011441,2]
[323322636,1713892240765,-892.47,0.00011441,2]
[323322638,1713892240776,-545.81,0.00011441,2]
[323322640,1713892240787,-500.0,0.00011441,2]
[323322642,1713892240798,-500.0,0.00011441,2]
[323322644,1713892240808,-500.0,0.00011441,2]
[323322646,1713892240819,-2777.22,0.00011441,2]
[323322648,1713892240829,-631.76,0.00011441,2]
[323322650,1713892240839,-500.0,0.00011441,2]
[323322652,1713892240849,-2549.92,0.00011441,2]
[323322654,1713892240858,-500.0,0.00011441,2]
[323322655,1713892240868,-1494.54,0.00011441,2]
[323322658,1713892240879,-542.81,0.00011441,2]
[323322659,1713892240888,-500.0,0.00011441,2]
[323322662,1713892240898,-500.0,0.00011441,2]
[323322664,1713892240907,-1899.61,0.00011441,2]
[323322665,1713892240918,-2210.97,0.00011441,2]
[323322667,1713892240927,-813.47,0.00011441,2]
[323322669,1713892240938,-1165.15,0.00011441,2]
[323322672,1713892240948,-500.0,0.00011441,2]
[323322674,1713892240958,-584.35,0.00011441,2]
[323322675,1713892240968,-834.84,0.00011441,2]
[323322678,1713892240977,-500.0,0.00011441,2]
[323322680,1713892240987,-500.0,0.00011441,2]
[323322681,1713892240998,-500.0,0.00011441,2]
[323322684,1713892241008,-1754.98,0.00011441,2]
[323322686,1713892241019,-500.0,0.00011441,2]
[323322688,1713892241030,-500.0,0.00011441,2]
[323322690,1713892241041,-500.0,0.00011441,2]
[323322692,1713892241051,-945.0,0.00011441,2]
[323322694,1713892241062,-836.02,0.00011441,2]
[323322696,1713892241072,-500.0,0.00011441,2]
[323322698,1713892241082,-500.0,0.00011441,2]
[323322699,1713892241092,-2113.7,0.00011441,2]
[323322700,1713892241101,-861.56,0.00011441,2]
[323322701,1713892241111,-1016.06,0.00011441,2]
[323322702,1713892241121,-582.65,0.00011441,2]
[323322703,1713892241130,-500.0,0.00011441,2]
[323322704,1713892241140,-3570.63,0.00011441,2]
[323322705,1713892241150,-306.25718129,0.00011441,2]
[323322706,1713892241159,-8504.95,0.00011441,2]
[323322707,1713892241169,-500.0,0.00011441,2]
[323322709,1713892241179,-664.07,0.00011441,2]
[323322711,1713892241189,-413.96155534,0.00011442,2]
[323322713,1713892241200,-333.63645202,0.00011442,2]
[323322715,1713892241209,-376.75976491,0.00011442,2]
[323322717,1713892241219,-404.26804546,0.00011443,2]
[323322719,1713892241229,-500.0,0.00011443,2]
[323322721,1713892241238,-500.0,0.00011443,2]
[323322723,1713892241249,-500.0,0.00011443,2]
[323322726,1713892241259,-500.0,0.00011443,2]
[323322728,1713892241268,-500.0,0.00011443,2]
[323322729,1713892241277,-526.78,0.00011443,2]
[323322730,1713892241286,-500.0,0.00011443,2]
[323322732,1713892241296,-391.0306531,0.00011443,2]
[323322734,1713892241305,-500.0,0.00011443,2]
[323322736,1713892241314,-500.0,0.00011443,2]
[323322738,1713892241323,-500.0,0.00011443,2]
[323322740,1713892241333,-500.0,0.00011443,2]
[323322742,1713892241341,-500.0,0.00011443,2]
[323322744,1713892241351,-500.0,0.00011443,2]
[323322746,1713892241360,-500.0,0.00011443,2]
[323322748,1713892241369,-500.0,0.00011443,2]
[323322750,1713892241378,-500.0,0.00011443,2]
[323322751,1713892241387,-500.0,0.00011443,2]
[323322753,1713892241397,-500.0,0.00011443,2]
[323322755,1713892241406,-172.97841251,0.00011443,2]
[323322757,1713892241415,-500.0,0.00011443,2]
[323322759,1713892241424,-500.0,0.00011443,2]
[323322761,1713892241433,-500.0,0.00011443,2]
[323322763,1713892241443,-500.0,0.00011443,2]
[323322765,1713892241453,-500.0,0.00011443,2]
[323322767,1713892241462,-630.43347437,0.00011443,2]
[323322769,1713892241471,-500.0,0.00011443,2]
[323322771,1713892241480,-500.0,0.00011443,2]
[323322773,1713892241489,-500.0,0.00011443,2]
[323322775,1713892241499,-500.0,0.00011443,2]
[323322777,1713892241508,-500.0,0.00011443,2]
[323322779,1713892241517,-500.0,0.00011443,2]
[323322781,1713892241527,-358.24,0.00011443,2]
[323322783,1713892241536,-500.0,0.00011443,2]
[323322785,1713892241545,-500.0,0.00011443,2]
[323322787,1713892241555,-500.0,0.00011443,2]
[323322789,1713892241564,-500.0,0.00011443,2]
[323322791,1713892241574,-648.15221196,0.00011443,2]
[323322793,1713892241584,-501.51,0.00011443,2]
[323322795,1713892241593,-500.0,0.00011443,2]
[323322797,1713892241602,-500.0,0.00011443,2]
[323322799,1713892241611,-500.0,0.00011443,2]
[323322801,1713892241620,-361.59,0.00011443,2]
[323322803,1713892241629,-500.0,0.00011443,2]
[323322805,1713892241638,-500.0,0.00011443,2]
[323322807,1713892241647,-500.0,0.00011443,2]
[323322809,1713892241656,-500.0,0.00011443,2]
[323322811,1713892241665,-500.0,0.00011443,2]
[323322813,1713892241675,-500.0,0.00011443,2]
[323322815,1713892241684,-500.0,0.00011443,2]
[323322817,1713892241693,-500.0,0.00011443,2]
[323322819,1713892241702,-500.0,0.00011443,2]
[323322821,1713892241711,-500.0,0.00011443,2]
[323322823,1713892241720,-500.0,0.00011443,2]
[323322825,1713892241730,-500.0,0.00011443,2]
[323322827,1713892241744,-500.0,0.00011443,2]
[323322829,1713892241754,-815.46,0.00011443,2]
[323322831,1713892241763,-615.58,0.00011443,2]
[323322833,1713892241773,-500.0,0.00011443,2]
[323322835,1713892241783,-1000.08,0.00011443,2]
[323322836,1713892241792,-571.06,0.00011443,2]
[323322837,1713892241801,-500.0,0.00011443,2]
[323322838,1713892241810,-500.0,0.00011443,2]
[323322839,1713892241822,-500.0,0.00011443,2]
[323322840,1713892241831,-10454.17,0.00011443,2]
[323322841,1713892241841,-500.0,0.00011443,2]
[323322842,1713892241850,-500.0,0.00011443,2]
[323322843,1713892241859,-500.0,0.00011443,2]
[323322844,1713892241869,-349.65,0.00011443,2]
[323322845,1713892241878,-500.0,0.00011443,2]
[323322846,1713892241887,-555.99,0.00011443,2]
[323322847,1713892241897,-500.0,0.00011443,2]
[323322848,1713892241906,-500.0,0.00011443,2]
[323322849,1713892241915,-427.7689541,0.00011443,2]
[323322850,1713892241924,-500.0,0.00011443,2]
[323322851,1713892241933,-500.0,0.00011443,2]
[323322852,1713892241943,-844.22,0.00011443,2]
[323322853,1713892241953,-500.0,0.00011443,2]
[323322854,1713892241963,-500.0,0.00011443,2]
[323322855,1713892241972,-500.0,0.00011443,2]
[323322856,1713892241982,-500.0,0.00011443,2]
[323322857,1713892241991,-500.0,0.00011443,2]
[323322858,1713892242004,-928.0,0.00011443,2]
[323322859,1713892242013,-500.0,0.00011443,2]
[323322860,1713892242023,-500.0,0.00011443,2]
[323322861,1713892242033,-500.0,0.00011443,2]
[323322862,1713892242042,-500.0,0.00011443,2]
[323322863,1713892242052,-500.0,0.00011443,2]
[323322864,1713892242061,-510.01,0.00011443,2]
[323322865,1713892242071,-500.0,0.00011443,2]
[323322866,1713892242080,-500.0,0.00011443,2]
[323322867,1713892242090,-1389.48,0.00011443,2]
[323322868,1713892242100,-500.0,0.00011443,2]
[323322869,1713892242109,-500.0,0.00011443,2]
[323322870,1713892242119,-500.0,0.00011443,2]
[323322871,1713892242128,-500.0,0.00011443,2]
[323322872,1713892242138,-305.06,0.00011443,2]
[323322873,1713892242148,-655.78,0.00011443,2]
[323322874,1713892242158,-273.28,0.00011443,2]
[323322875,1713892242168,-676.08,0.00011443,2]
[323322876,1713892242178,-500.0,0.00011443,2]
[323322877,1713892242189,-500.0,0.00011443,2]
[323322878,1713892242199,-776.87,0.00011443,2]
[323322879,1713892242209,-500.0,0.00011443,2]
[323322880,1713892242219,-543.2,0.00011443,2]
[323322881,1713892242229,-500.0,0.00011445,2]
[323322882,1713892242238,-500.0,0.00011445,2]
[323322883,1713892242251,-500.0,0.00011445,2]
[323322884,1713892242262,-500.0,0.00011445,2]
[323322885,1713892242271,-310.18634514,0.00011617,2]
[323322886,1713892242281,-197.8184091,0.00011619,2]
[323322887,1713892242291,-1100.43363435,0.00011634,2]
[323322888,1713892242301,-500.0,0.00011712,2]
[323322889,1713892242311,-500.0,0.00011712,2]
[323322890,1713892242321,-500.0,0.00011712,2]
[323322891,1713892242332,-500.0,0.00011712,2]
[323322892,1713892242342,-500.0,0.00011712,2]
[323322893,1713892242352,-1212.0,0.00011715,2]
[323322894,1713892242362,-500.0,0.00011715,2]
[323322895,1713892242373,-500.0,0.00011715,2]
[323322896,1713892242382,-500.0,0.00011715,2]
[323322897,1713892242392,-500.0,0.00011715,2]
[323322898,1713892242404,-500.0,0.00011715,2]
[323322899,1713892242462,-1156.5,0.00011715,2]
[323322900,1713892242474,-500.0,0.00011715,2]
[323322901,1713892242483,-564.56,0.00011715,2]
[323322902,1713892242493,-500.0,0.00011715,2]
[323322903,1713892242505,-500.0,0.00011715,2]
[323322904,1713892242515,-1384.21,0.00011715,2]
[323322905,1713892242525,-500.0,0.00011715,2]
[323322906,1713892242534,-1589.98,0.00011715,2]
[323322907,1713892242544,-500.0,0.00011715,2]
[323322908,1713892242554,-500.0,0.00011715,2]
[323322909,1713892242564,-500.0,0.00011715,2]
[323322910,1713892242574,-1138.86,0.00011715,2]
[323322911,1713892242583,-500.0,0.00011715,2]
[323322912,1713892242593,-500.0,0.00011715,2]
[323322913,1713892242602,-500.0,0.00011715,2]
[323322914,1713892242611,-720.44,0.00011715,2]
[323322915,1713892242620,-892.47,0.00011715,2]
[323322916,1713892242629,-545.81,0.00011715,2]
[323322917,1713892242638,-500.0,0.00011715,2]
[323322918,1713892242647,-500.0,0.00011715,2]
[323322919,1713892242657,-500.0,0.00011715,2]
[323322920,1713892242666,-2777.22,0.00011715,2]
[323322921,1713892242675,-631.76,0.00011715,2]
[323322923,1713892242685,-500.0,0.00011715,2]
[323322924,1713892242694,-2549.92,0.00011715,2]
[323322925,1713892242703,-500.0,0.00011715,2]
[323322926,1713892242713,-1494.54,0.00011715,2]
[323322927,1713892242722,-542.81,0.00011715,2]
[323322929,1713892242731,-500.0,0.00011715,2]
[323322930,1713892242742,-500.0,0.00011715,2]
[323322931,1713892242757,-2210.97,0.00011715,2]
[323322932,1713892242767,-414.41356038,0.00011715,2]
[323322933,1713892242781,-374.06351889,0.00011715,2]
[323322934,1713892242824,-24.99292073,0.00011715,2]
[323322935,1713892242834,-1165.15,0.00011715,2]
[323322936,1713892242843,-500.0,0.00011715,2]
[323322937,1713892242852,-584.35,0.00011715,2]
[323322938,1713892242862,-834.84,0.00011715,2]
[323322939,1713892242871,-500.0,0.00011715,2]
[323322940,1713892242880,-500.0,0.00011715,2]
[323322941,1713892242889,-265.46199802,0.00011715,2]
[323322943,1713892242900,-234.53800198,0.00011715,2]
[323322946,1713892242910,-500.0,0.00011715,2]
[323322949,1713892242920,-730.27746757,0.00011715,2]
[323322951,1713892242931,-945.992404,0.00011715,2]
[323322972,1713892243150,-415.0266194,0.00011167,2]
[323322973,1713892243161,-192.6033806,0.00011167,2]
[323322974,1713892243171,-607.63,0.00011441,2]
[323322975,1713892243181,-78.71012843,0.00011715,2]
[323322976,1713892243190,-33.39651282,0.00011715,2]
[323322977,1713892243202,-466.60348718,0.00011715,2]
[323322978,1713892243212,-500.0,0.00011715,2]
[323322979,1713892243222,-945.0,0.00011715,2]
[323322980,1713892243232,-836.02,0.00011715,2]
[323322981,1713892243242,-500.0,0.00011715,2]
[323322982,1713892243253,-500.0,0.00011715,2]
[323322983,1713892243263,-2113.7,0.00011715,2]
[323322984,1713892243272,-521.37651282,0.00011715,2]
[323322985,1713892243291,-340.18348718,0.00011715,2]
[323322986,1713892243300,-1016.06,0.00011715,2]
[323322987,1713892243308,-582.65,0.00011715,2]
[323322988,1713892243318,-500.0,0.00011715,2]
[323322989,1713892243327,-3570.63,0.00011715,2]
[323322990,1713892243336,-8504.95,0.00011715,2]
[323322991,1713892243346,-500.0,0.00011715,2]
[323322992,1713892243356,-664.07,0.00011715,2]
[323322993,1713892243366,-607.63,0.00011715,2]
[323322994,1713892243377,-4628.1872894,0.00011716,2]
[323322995,1713892243386,-553.71503426,0.00011717,2]
[323322996,1713892243396,-500.0,0.00011717,2]
[323322997,1713892243406,-500.0,0.00011717,2]
[323322998,1713892243415,-500.0,0.00011717,2]
[323322999,1713892243425,-500.0,0.00011717,2]
[323323000,1713892243434,-526.78,0.00011717,2]
[323323001,1713892243443,-500.0,0.00011717,2]
[323323002,1713892243452,-500.0,0.00011717,2]
[323323003,1713892243462,-500.0,0.00011717,2]
[323323004,1713892243471,-500.0,0.00011717,2]
[323323005,1713892243480,-500.0,0.00011717,2]
[323323006,1713892243489,-500.0,0.00011717,2]
[323323007,1713892243499,-500.0,0.00011717,2]
[323323008,1713892243509,-500.0,0.00011717,2]
[323323009,1713892243518,-500.0,0.00011717,2]
[323323010,1713892243527,-500.0,0.00011717,2]
[323323011,1713892243536,-500.0,0.00011717,2]
[323323012,1713892243545,-500.0,0.00011717,2]
[323323013,1713892243555,-500.0,0.00011717,2]
[323323014,1713892243564,-500.0,0.00011717,2]
[323323015,1713892243574,-500.0,0.00011717,2]
[323323016,1713892243583,-500.0,0.00011717,2]
[323323017,1713892243593,-500.0,0.00011717,2]
[323323018,1713892243603,-520.33,0.00011717,2]
[323323020,1713892243612,-500.0,0.00011717,2]
[323323022,1713892243621,-388.32,0.00011717,2]
[323323023,1713892243630,-500.0,0.00011717,2]
[323323024,1713892243640,-281.85,0.00011717,2]
[323323025,1713892243649,-500.0,0.00011717,2]
[323323026,1713892243659,-500.0,0.00011717,2]
[323323027,1713892243669,-500.0,0.00011717,2]
[323323029,1713892243678,-500.0,0.00011717,2]
[323323031,1713892243687,-500.0,0.00011717,2]
[323323032,1713892243697,-501.51,0.00011717,2]
[323323034,1713892243706,-500.0,0.00011717,2]
[323323035,1713892243716,-500.0,0.00011717,2]
[323323036,1713892243725,-500.0,0.00011717,2]
[323323037,1713892243734,-500.0,0.00011717,2]
[323323038,1713892243746,-500.0,0.00011717,2]
[323323039,1713892243755,-500.0,0.00011717,2]
[323323040,1713892243763,-358.3541683,0.00011717,2]
[323323041,1713892243772,-500.0,0.00011717,2]
[323323042,1713892243782,-500.0,0.00011717,2]
[323323043,1713892243793,-500.0,0.00011717,2]
[323323044,1713892243803,-500.0,0.00011717,2]
[323323045,1713892243811,-500.0,0.00011717,2]
[323323046,1713892243821,-500.0,0.00011717,2]
[323323047,1713892243831,-500.0,0.00011717,2]
[323323048,1713892243841,-205.35,0.00011717,2]
[323323049,1713892243852,-500.0,0.00011717,2]
[323323050,1713892243862,-815.46,0.00011717,2]
[323323051,1713892243872,-615.58,0.00011717,2]
[323323052,1713892243882,-500.0,0.00011717,2]
[323323053,1713892243891,-1000.08,0.00011717,2]
[323323054,1713892243901,-571.06,0.00011717,2]
[323323055,1713892243911,-500.0,0.00011717,2]
[323323056,1713892243921,-500.0,0.00011717,2]
[323323057,1713892243930,-500.0,0.00011717,2]
[323323058,1713892243940,-10454.17,0.00011717,2]
[323323059,1713892243950,-500.0,0.00011717,2]
[323323060,1713892243962,-500.0,0.00011717,2]
[323323061,1713892243972,-500.0,0.00011717,2]
[323323062,1713892243983,-500.0,0.00011717,2]
[323323063,1713892243993,-555.99,0.00011717,2]
[323323064,1713892244003,-500.0,0.00011717,2]
[323323065,1713892244012,-500.0,0.00011717,2]
[323323066,1713892244023,-165.53560051,0.00011717,2]
[323323067,1713892244034,-500.0,0.00011717,2]
[323323068,1713892244045,-844.22,0.00011717,2]
[323323069,1713892244054,-500.0,0.00011717,2]
[323323070,1713892244063,-501.23706314,0.00011717,2]
[323323071,1713892244072,-396.0543089,0.00011717,2]
[323323072,1713892244081,-500.0,0.00011717,2]
[323323073,1713892244092,-500.0,0.00011717,2]
[323323074,1713892244101,-928.0,0.00011717,2]
[323323075,1713892244111,-500.0,0.00011717,2]
[323323076,1713892244120,-500.0,0.00011717,2]
[323323077,1713892244129,-500.0,0.00011717,2]
[323323078,1713892244139,-500.0,0.00011717,2]
[323323079,1713892244148,-500.0,0.00011717,2]
[323323080,1713892244157,-510.01,0.00011717,2]
[323323081,1713892244167,-500.0,0.00011717,2]
[323323082,1713892244176,-500.0,0.00011717,2]
[323323083,1713892244185,-1389.48,0.00011717,2]
[323323084,1713892244195,-500.0,0.00011717,2]
[323323085,1713892244204,-500.0,0.00011717,2]
[323323086,1713892244213,-500.0,0.00011717,2]
[323323087,1713892244223,-500.0,0.00011717,2]
[323323088,1713892244233,-655.78,0.00011717,2]
[323323089,1713892244244,-676.08,0.00011717,2]
[323323090,1713892244254,-500.0,0.00011717,2]
[323323091,1713892244264,-500.0,0.00011717,2]